Cogmind - Beta 14 @@@ ROGUE MODE // 2025.01.05 @ 17:37:44 // Winter2021/Sauler Player: 7604 Result: Self-destructed Performance ------------- Evolutions (3) 1500 Regions Visited (13) 2600 Robots Destroyed (238) 1190 Value Destroyed (7803) 7803 Prototype IDs (7) 140 Alien Tech Used (0) 0 Bonus (3423) 3423 TOTAL SCORE: 16656 Bonus ------- High Alert Combat Kills 1635 Follower Combat Kills 767 Entered Garrisons 400 Used RIF Installer 1000 Friendly Fire -379 Cogmind --------- Core Integrity 529/700 Matter 5/300 Energy 100/100 System Corruption 46% Temperature Warm (113) Movement Core (100) Ox1 Location -7/Factory Parts ------- > --- POWER (1) -------- (None) > --- PROPULSION (2) --- (None) > --- UTILITY (8) ------ Machine Analyzer Transmission Jammer Relay Coupler [NC] (4) > --- WEAPON (2) ------- Remote Datajack > --- INVENTORY (5) ---- Light Treads Armored Treads Medium Treads Cooling System Improved Light Cannon Peak State ------------ > --- POWER ------------ Light Nuclear Core > --- PROPULSION ------- Armored Treads Medium Treads > --- UTILITY ---------- Advanced Cooling System Huge Storage Unit Improved Light Armor Plating Improved Light Armor Plating Advanced Shield Generator Relay Coupler [NC] Relay Coupler [Grunt] Relay Coupler [Hunter] > --- WEAPON ----------- KE Penetrator Mass Driver > --- INVENTORY -------- Improved Deuterium Engine Light Treads Light Treads Light Treads Light Treads Light Treads Light Treads Cooling System Compact Battery High-capacity Matter Pod Machine Analyzer Seismic Detector Hardened Light Armor Plating Improved Light Armor Plating Hacking Suite Relay Coupler [Swarmer] Relay Coupler [Cutter] Relay Coupler [Sentry] Heavy Particle Cannon Improved Light Cannon Rocket Launcher Remote Datajack Remote Datajack Remote Datajack Improved Plasma Cutter [Rating: 56] Favorites ----------- Power Cooled Ion Engine Engine Cooled Ion Engine Power Core Light Nuclear Core Propulsion Light Treads Treads Light Treads Wheel Centrium Wheel Hover Unit Backup Propulsion III Flight Unit Improved VTOL Module Utility Hardened Light Armor Plating Device Cooling System Storage Huge Storage Unit Processor Target Analyzer Hackware Relay Coupler [NC] Protection Hardened Light Armor Plating Weapon Light EM Pulse Cannon Energy Gun Improved EM Shotgun Energy Cannon Light EM Pulse Cannon Ballistic Gun Improved Assault Rifle Ballistic Cannon Light Cannon Launcher Rocket Launcher Special Weapon Remote Datajack Build | -11 -10 -10 -9 -9 -9 -8 -8 -8 -8 -8 -7 -7 -7 ------- Run | Yrd Mat Min Mat Min Exi Min Mat Gar Mat Gar Fac Was Fac Slots Evolved 6 | . . . 2 . . . 2 . . . 2 . . Power . | . . . . . . . . . . . . . . Propulsion . | . . . . . . . . . . . . . . Utility 6 | . . . 2 . . . 2 . . . 2 . . Weapon . | . . . . . . . . . . . . . . Parts Attached 259 | 8 19 2 65 8 . 3 16 46 36 10 43 3 . Power 12 | 1 . . 5 . . . . . 2 . 4 . . Engine 11 | 1 . . 5 . . . . . 2 . 3 . . Core 1 | . . . . . . . . . . . 1 . . Reactor . | . . . . . . . . . . . . . . Propulsion 34 | 2 1 1 14 . . . 3 5 3 2 2 1 . Treads 32 | 2 1 1 14 . . . 3 5 2 2 2 . . Leg . | . . . . . . . . . . . . . . Wheel 1 | . . . . . . . . . . . . 1 . Hover . | . . . . . . . . . . . . . . Flight 1 | . . . . . . . . . 1 . . . . Utility 84 | 2 8 1 17 3 . 1 6 16 10 4 15 1 . Device 26 | 1 2 1 5 . . 1 . 6 2 3 5 . . Storage 8 | 1 3 . 2 1 . . . . . . . 1 . Processor 2 | . . . . . . . . 1 . . 1 . . Hackware 6 | . . . . . . . . . 3 1 2 . . Protection 42 | . 3 . 10 2 . . 6 9 5 . 7 . . Artifact . | . . . . . . . . . . . . . . Weapon 129 | 3 10 . 29 5 . 2 7 25 21 4 22 1 . Energy Gun 7 | 2 . . 1 . . . . . 3 1 . . . Energy Cannon 22 | . 1 . 2 2 . 2 3 3 9 . . . . Ballistic Gun 34 | 1 2 . 15 . . . . 11 2 . 3 . . Ballistic Cannon 14 | . 3 . . . . . . . . 1 10 . . Launcher 33 | . 4 . 11 2 . . 4 9 2 . 1 . . Special Weapon 19 | . . . . 1 . . . 2 5 2 8 1 . Impact Weapon . | . . . . . . . . . . . . . . Slashing Weapon . | . . . . . . . . . . . . . . Piercing Weapon . | . . . . . . . . . . . . . . Special Melee Weapon . | . . . . . . . . . . . . . . Unidentified Prototypes 4 | . . . 2 . . . . . 2 . . . . Corrupted Parts 1 | . . . . . . . . . . . . 1 . System Corruption 2 | . . . . . . . . . . . . 2 . Parts Lost 45 | . 1 1 3 1 . . 6 11 7 1 8 5 1 Power 4 | . . . . . . . . . 1 . 3 . . Propulsion 7 | . . 1 1 . . . 2 1 . . 1 . 1 Utility 27 | . 1 . 2 1 . . 2 9 2 1 4 5 . Weapon 7 | . . . . . . . 2 1 4 . . . . Highest Loss Streak 5 | . 1 1 1 1 . . 5 4 3 1 2 4 1 To Critical Strikes . | . . . . . . . . . . . . . . Average Slot Usage (%) 97 | . 99 99 99 99 77 96 97 99 99 99 98 76 38 Engine 9 | . 14 14 10 11 11 11 9 9 8 9 5 3 . Treads 20 | . 28 27 21 22 22 22 17 17 17 18 14 9 . Device 12 | . 1 11 19 11 11 20 12 8 9 9 13 11 7 Storage 10 | . 14 14 11 11 11 11 9 9 9 9 7 5 . Processor 1 | . . . . . . . . 1 7 . 2 7 7 Hackware 4 | . . . . . . . . . 13 17 18 11 7 Protection 17 | . 12 2 13 21 22 12 30 33 14 18 18 7 . Energy Gun 1 | . 5 . . . . . . . 7 4 . . . Energy Cannon 5 | . 1 14 1 21 . 18 17 2 7 8 . . . Ballistic Gun 8 | . 12 . 19 . . . . 14 1 . 6 5 . Ballistic Cannon 2 | . 8 14 1 . . . . . . . 6 . . Peak Build Rating 56 | 7 13 11 21 20 20 20 28 33 34 40 56 51 20 Average Rating 24 | 6 9 10 19 19 17 19 25 29 29 32 50 37 19 On Entrance 21 | . 7 11 11 18 20 17 20 28 28 28 40 51 19 Naked Turns . | . . . . . . . . . . . . . . Heaviest Build 121 | 14 56 56 106 108 108 108 115 115 112 112 121 118 4 Greatest Support 48 | 40 40 40 40 40 40 40 40 40 40 40 48 48 16 Greatest Overweight (x) 33 | . 1 1 3 2 2 2 2 2 33 2 4 5 . Average Overweight (x) 1 | . . 1 1 2 2 2 2 2 2 2 2 1 . Largest Inventory Capacity 25 | 8 20 20 25 25 25 25 25 25 25 25 25 25 5 Average Capacity 22 | 7 16 20 20 25 25 25 25 25 25 25 25 20 5 Most Carried 25 | 5 20 20 21 22 24 24 24 25 25 25 25 25 5 Average Carried 20 | 2 14 19 19 20 23 23 22 23 24 24 22 17 4 Final Capacity 25 | 8 20 20 25 25 25 25 25 25 25 25 25 5 5 Final Carried 25 | 5 20 20 18 22 24 24 22 25 25 25 24 5 5 Class Distribution -------------------- 64% | Mutant 29% | Bothacker-Mutant 5% | Scavenger-Mutant Dominant Class ---------------- Mutant | -10/Materials Mutant | -10/Mines Mutant | -9/Materials Mutant | -9/Mines Mutant | -9/Exiles Mutant | -8/Mines Mutant | -8/Materials Scavenger-Mutant | -8/Garrison Bothacker-Mutant | -8/Materials Bothacker-Mutant | -8/Garrison Bothacker-Mutant | -7/Factory Bothacker-Mutant | -7/Waste Mutant | -7/Factory Resources | -11 -10 -10 -9 -9 -9 -8 -8 -8 -8 -8 -7 -7 -7 ----------- Run | Yrd Mat Min Mat Min Exi Min Mat Gar Mat Gar Fac Was Fac Matter Collected 6880 | 303 373 303 1856 187 283 48 199 1425 650 140 1075 38 . Remotely . | . . . . . . . . . . . . . . Salvage Created 7273 | 138 397 134 2000 62 . . 915 916 1315 297 1099 . . Parts 468 | 17 45 3 149 10 . . 40 60 57 12 75 . . Haulers Intercepted 10 | . . . 4 . . . 2 . 2 . 2 . . Recyclers Shooed 5 | 2 . . 1 . . . . . 1 . 1 . . Parts Field Recycled . | . . . . . . . . . . . . . . Retrieved Matter . | . . . . . . . . . . . . . . Parts Self-Destructed . | . . . . . . . . . . . . . . Prevented . | . . . . . . . . . . . . . . Kills | -11 -10 -10 -9 -9 -9 -8 -8 -8 -8 -8 -7 -7 -7 ------- Run | Yrd Mat Min Mat Min Exi Min Mat Gar Mat Gar Fac Was Fac Combat Hostiles Destroyed 173 | . 16 2 56 4 . . 22 30 19 6 18 . . Guns 60 | . 6 . 27 . . . . 15 3 2 7 . . Cannons 47 | . 4 2 6 1 . . 8 1 11 4 10 . . AOE 61 | . 6 . 23 3 . . 10 14 4 . 1 . . Classes Destroyed 17 | 1 6 . 6 1 . . 1 1 . . 1 . . Worker 12 | . 2 . 3 . . . 3 . . . 4 . . Builder 12 | . . . 4 . . . 3 . 1 . 4 . . Tunneler 8 | 6 . . . 2 . . . . . . . . . Hauler 10 | . . . 4 . . . 2 . 2 . 2 . . Recycler 5 | . 1 1 . . . . . . 1 . 2 . . Mechanic 4 | . . . 3 . . . . . . . 1 . . Operator 3 | . 1 . 2 . . . . . . . . . . Watcher 11 | . 3 . 3 . . . 1 . 3 . 1 . . Swarmer 46 | . 9 . 15 3 . . 5 11 1 . 2 . . Grunt 84 | . 7 2 27 . . . 14 9 14 4 7 . . Brawler 5 | . . . 2 . . . . . 3 . . . . Duelist 2 | . . . . . . . 1 . . . 1 . . Protector 3 | . . . 3 . . . . . . . . . . Sentry 22 | . . . 9 . . . 2 5 2 2 2 . . Demolisher 1 | . . . . 1 . . . . . . . . . Hunter 2 | . . . . . . . . . . . 2 . . Programmer 10 | . . . . . . . . 5 . . 5 . . Best Kill Streak 17 | 2 5 2 12 4 . . 17 6 3 2 5 . . Combat Bots Only 12 | . 3 1 9 3 . . 12 6 3 2 3 . . Max Kills in Single Turn 5 | 1 5 1 5 1 . . 3 5 2 1 3 . . Gunslinging 1 | . . . 1 . . . . . . . . . . Exploded 5 | . 3 . 4 1 . . 2 5 1 . 1 . . Melee . | . . . . . . . . . . . . . . Uniques/NPCs Destroyed . | . . . . . . . . . . . . . . Combat | -11 -10 -10 -9 -9 -9 -8 -8 -8 -8 -8 -7 -7 -7 -------- Run | Yrd Mat Min Mat Min Exi Min Mat Gar Mat Gar Fac Was Fac Hostile Shots Fired 950 | . 90 15 219 19 . . 96 196 81 25 193 5 11 Missed 296 | . 23 1 75 3 . . 32 61 27 7 61 1 5 Damage Taken 8556 | . 688 188 1599 265 . . 1080 1696 1016 274 1488 212 50 Core 934 | . 82 44 222 82 . . 91 155 75 12 112 47 12 Absorbed by Shields 864 | . . . 406 . . . . 154 . . 304 . . Redirected to Shielding 6 | . . . . . . . 6 . . . . . . Ignored by Resistances 180 | . . . . . . . . 51 20 33 76 . . Regen/Repaired (Parts) 1093 | . . . 516 . . . . . 405 91 81 . . Core Remaining (%) 53 | 100 . 49 . . . 24 . . . 39 . . . Volleys Fired 561 | 11 54 13 134 6 . . 46 91 73 34 95 4 . Largest 2 | 2 2 2 2 2 . . 2 2 2 2 2 1 . Hottest 131 | 60 66 95 112 112 . . 112 112 131 125 90 5 . Shots Fired 1017 | 22 107 28 269 12 . . 83 166 126 41 159 4 . Gun 565 | 22 71 . 216 . . . . 143 39 8 66 . . Cannon 348 | . 30 28 32 8 . . 65 8 73 30 74 . . Launcher 64 | . 6 . 21 4 . . 18 15 . . . . . Special 40 | . . . . . . . . . 14 3 19 4 . Kinetic 622 | 11 81 14 231 . . . . 143 1 1 140 . . Thermal 118 | 11 20 14 15 . . . . . 29 29 . . . Explosive 64 | . 6 . 21 4 . . 18 15 . . . . . Electromagnetic 173 | . . . 2 8 . . 65 8 82 8 . . . Robot Hit Streak 18 | 5 6 3 14 4 . . 9 18 12 9 8 1 . Robot Miss Streak 6 | 1 6 3 4 3 . . 3 4 5 2 4 1 . Penetration Max 1 | . . . . . . . . . . . 1 . . Secondary Targets 7 | . . . 6 . . . . 1 . . . . . Max Gunslinging Chain 1 | . . . 1 . . . . 1 . . . . . Shots Hit Robots 630 | 14 58 15 181 5 . . 57 88 89 25 96 2 . Core Hits 356 | 6 31 3 113 6 . . 51 50 47 11 38 . . Critical Kills 1 | . . . . . . . . . . . 1 . . Critical Parts Destroyed 7 | . . . 1 . . . . 1 . . 5 . . Critical Strikes 20 | . 1 . 2 1 . . 2 1 4 . 9 . . Destroy 8 | . . . 1 . . . . 1 . . 6 . . Blast 5 | . 1 . 1 . . . . . . . 3 . . Corrupt 7 | . . . . 1 . . 2 . 4 . . . . Melee Attacks . | . . . . . . . . . . . . . . Impact . | . . . . . . . . . . . . . . Slashing . | . . . . . . . . . . . . . . Piercing . | . . . . . . . . . . . . . . Sneak Attacks . | . . . . . . . . . . . . . . Combat Hostiles . | . . . . . . . . . . . . . . Follow-up Attacks . | . . . . . . . . . . . . . . Damage Inflicted 19567 | 169 1481 284 5138 316 . . 2854 2916 2379 587 3443 . . Guns 6719 | 161 462 . 2506 . . . . 1566 550 146 1328 . . Cannons 5702 | . 326 271 350 90 . . 1253 25 1258 441 1688 . . Explosions 7016 | . 674 . 2242 226 . . 1601 1323 560 . 390 . . Melee . | . . . . . . . . . . . . . . Ramming 130 | 8 19 13 40 . . . . 2 11 . 37 . . Kinetic 8090 | 71 646 116 2675 . . . . 1566 . . 3016 . . Thermal 2604 | 90 215 155 159 . . . 90 . 1064 441 390 . . Explosive 5903 | . 601 . 2242 226 . . 1511 1323 . . . . . Electromagnetic 2840 | . . . 22 90 . . 1253 25 1304 146 . . . Impact . | . . . . . . . . . . . . . . Slashing . | . . . . . . . . . . . . . . Piercing . | . . . . . . . . . . . . . . Highest Corruption 46 | . 3 3 4 4 4 4 . 5 5 5 9 46 46 Average Corruption 4 | . 2 3 3 4 4 4 . 1 5 5 6 27 46 Corruption Purged . | . . . . . . . . . . . . . . Corruption Blocked . | . . . . . . . . . . . . . . Effects 374 | . 34 22 78 25 25 17 . 17 52 26 56 16 6 Message Errors 90 | . 10 4 18 2 8 3 . 5 14 8 11 3 4 Matter Fused 88 | . 7 7 16 7 6 5 . 6 15 4 12 3 . Heat Flow Errors 50 | . 6 4 12 2 3 3 . . 5 1 9 3 2 Energy Discharges 52 | . 5 3 11 3 3 2 . 4 6 7 7 1 . Parts Rejected 6 | . . . . . . . . . 3 . 2 1 . Parts Fused 6 | . . . 1 1 1 . . . . 3 . . . Data Loss (minor) 42 | . 2 2 14 3 2 2 . . 7 1 7 2 . Data Loss (major) 11 | . . . 1 2 2 2 . 1 . 1 1 1 . Misfires 18 | . 2 2 4 2 . . . 1 2 1 4 . . Alerts 5 | . . . 1 3 . . . . . . . 1 . Misdirections 1 | . . . . . . . . . . . . 1 . Weapon Failures 5 | . 2 . . . . . . . . . 3 . . Overload Shots . | . . . . . . . . . . . . . . Overflow Damage 392 | . 94 . 66 9 . . 41 5 36 14 127 . . Projectiles 159 | . . . 13 . . . 14 . 23 14 95 . . Explosions 233 | . 94 . 53 9 . . 27 5 13 . 32 . . Melee . | . . . . . . . . . . . . . . Knockbacks 23 | . 3 2 4 . . . . . . . 14 . . Impact 1 | . . . . . . . . . . . 1 . . Kinetic 20 | . 3 2 4 . . . . . . . 11 . . Secondary 2 | . . . . . . . . . . . 2 . . Self-Inflicted Damage 713 | . 16 . 99 44 . . 131 87 143 . 193 . . Shots 20 | . 1 . 4 1 . . 6 2 3 . 3 . . Rammed 19 | 3 4 . 5 . . . . 1 2 . 4 . . Targets Rammed 20 | 3 4 1 5 . . . . 1 2 . 4 . . Kicked . | . . . . . . . . . . . . . . Crushed 1 | . . 1 . . . . . . . . . . . Highest Temperature 374 | . 274 374 240 166 204 250 188 321 210 104 286 242 151 Average Temperature 70 | . 62 127 63 80 96 111 48 69 50 36 99 108 83 Received Heat Transfer 2778 | . 207 105 496 . . . 540 500 387 180 348 . 15 Effects 2 | . . . . . . . . 2 . . . . . Interference 2 | . . . . . . . . 2 . . . . . Siege Activations . | . . . . . . . . . . . . . . Robots Corrupted 5 | . . . . . . . 4 . 1 . . . . Combat Hostiles 5 | . . . . . . . 4 . 1 . . . . Parts Fried 15 | . . . . . . . 9 . 6 . . . . Impact Corruptions . | . . . . . . . . . . . . . . Robots Melted . | . . . . . . . . . . . . . . Combat Hostiles . | . . . . . . . . . . . . . . Parts Melted 4 | . . . . . . . . . 2 2 . . . Heat Transferred 3760 | 200 375 333 333 . . . 150 . 1440 629 300 . . Parts Sabotaged . | . . . . . . . . . . . . . . Parts Stolen . | . . . . . . . . . . . . . . Parts Stripped . | . . . . . . . . . . . . . . Power Chain Reactions 9 | . . . . . . . 2 . 7 . . . . Alert | -11 -10 -10 -9 -9 -9 -8 -8 -8 -8 -8 -7 -7 -7 ------- Run | Yrd Mat Min Mat Min Exi Min Mat Gar Mat Gar Fac Was Fac Peak Influence 1669 | 30 250 142 960 379 . . 543 1669 846 961 679 230 155 Initial 813 | . 19 97 . 374 . . . 352 813 504 504 215 140 Average 461 | 14 124 45 416 253 . . 220 1042 741 712 574 207 140 Maximum Alert Level 5 | . 1 . 3 1 . . 2 5 3 3 2 1 . Low Security (%) 33 | 100 79 100 28 42 . 100 57 . . . . 38 100 Level 1 15 | . 20 . 28 57 . . 12 3 . . 1 61 . Level 2 25 | . . . 20 . . . 30 14 32 54 98 . . Level 3 20 | . . . 22 . . . . 39 67 45 . . . Level 4 4 | . . . . . . . . 39 . . . . . Level 5 . | . . . . . . . . 2 . . . . . High Security . | . . . . . . . . . . . . . . Max Security . | . . . . . . . . . . . . . . Sterilizations 1 | . . . 1 . . . . . . . . . . Squads Dispatched 30 | . 3 . 8 . . . 5 . 4 . 10 . . Investigation 5 | . 2 . . . . . 1 . 1 . 1 . . Extermination 5 | . . . . . . . . . . . 5 . . Reinforcement 10 | . 1 . 3 . . . . . 2 . 4 . . Assault 6 | . . . 5 . . . . . 1 . . . . Garrison 4 | . . . . . . . 4 . . . . . . Intercept . | . . . . . . . . . . . . . . Searches Triggered . | . . . . . . . . . . . . . . Construction Impeded 2 | . . . . . . . . . . . 2 . . Haulers Reinforced 1 | . . . . . . . . . . . 1 . . Active Scanning Responses . | . . . . . . . . . . . . . . Cargo Convoy Interrupts . | . . . . . . . . . . . . . . Stealth | -11 -10 -10 -9 -9 -9 -8 -8 -8 -8 -8 -7 -7 -7 --------- Run | Yrd Mat Min Mat Min Exi Min Mat Gar Mat Gar Fac Was Fac Distress Signals 15 | . 1 . 6 . . . 3 . 3 . 2 . . Communications Jammed 6 | . . . . . . . . . . . 6 . . Distress Signals 6 | . . . . . . . . . . . 6 . . Times Spotted 308 | . 22 2 87 4 . . 32 37 44 18 53 5 4 Peak Tracking Total 10 | . 3 2 10 3 . . 5 6 5 4 6 4 4 Tactical Retreats 14 | . . . 4 . . . 3 2 3 1 1 . . Traps | -11 -10 -10 -9 -9 -9 -8 -8 -8 -8 -8 -7 -7 -7 ------- Run | Yrd Mat Min Mat Min Exi Min Mat Gar Mat Gar Fac Was Fac Traps Triggered 16 | . 2 . 4 . . . . 4 . 3 2 . 1 Indirectly . | . . . . . . . . . . . . . . Trap Hack Attempts . | . . . . . . . . . . . . . . Triggered . | . . . . . . . . . . . . . . Disarmed . | . . . . . . . . . . . . . . Reprogrammed . | . . . . . . . . . . . . . . Reused . | . . . . . . . . . . . . . . Traps Extracted . | . . . . . . . . . . . . . . Installed . | . . . . . . . . . . . . . . Triggered 3 | . . . . . . . 1 2 . . . . . Machines | -11 -10 -10 -9 -9 -9 -8 -8 -8 -8 -8 -7 -7 -7 ---------- Run | Yrd Mat Min Mat Min Exi Min Mat Gar Mat Gar Fac Was Fac Machines Disabled 36 | . 2 . 6 1 . . 4 6 3 3 11 . . Max in Single Turn 5 | . 1 . 3 1 . . 2 1 1 1 5 . . Garrison Relay 4 | . . . . . . . . 2 . 2 . . . Phase Generator 1 | . . . . . . . . 1 . . . . . Machines Repaired . | . . . . . . . . . . . . . . Machines Dismantled 2 | . . . . . . . . 2 . . . . . Machines Sabotaged . | . . . . . . . . . . . . . . Overloaded Fab Kills . | . . . . . . . . . . . . . . Hacking | -11 -10 -10 -9 -9 -9 -8 -8 -8 -8 -8 -7 -7 -7 --------- Run | Yrd Mat Min Mat Min Exi Min Mat Gar Mat Gar Fac Was Fac Machines Accessed 41 | . 9 . 13 1 . . 2 3 5 2 3 . 3 Terminals 29 | . 7 . 8 1 . . 1 3 4 2 1 . 2 Fabricators . | . . . . . . . . . . . . . . Repair Stations 2 | . . . 2 . . . . . . . . . . Recycling Units 7 | . 2 . 2 . . . . . . . 2 . 1 Scanalyzers 1 | . . . 1 . . . . . . . . . . Garrison Access 2 | . . . . . . . 1 . 1 . . . . Total Hacks 130 | . 28 . 61 3 . . 4 7 12 4 5 . 6 Successful 68 | . 16 . 44 1 . . 1 . 3 1 2 . . Failed 60 | . 11 . 16 2 . . 3 7 9 3 3 . 6 Catastrophic 15 | . . . 1 1 . . . 2 4 1 1 . 5 Database Lockouts 2 | . 1 . 1 . . . . . . . . . . Manual 57 | . 18 . 15 4 . . 1 1 10 2 1 . 5 Terminals 82 | . 21 . 26 3 . . 3 7 11 4 2 . 5 Fabricators . | . . . . . . . . . . . . . . Repair Stations 27 | . . . 27 . . . . . . . . . . Recycling Units 14 | . 7 . 3 . . . . . . . 3 . 1 Scanalyzers 5 | . . . 5 . . . . . . . . . . Garrison Access 2 | . . . . . . . 1 . 1 . . . . Terminal Hacks 19 | . 5 . 10 1 . . . . 1 1 1 . . Part Schematic 1 | . . . 1 . . . . . . . . . . Robot Schematic 1 | . . . . 1 . . . . . . . . . Robot Analysis 3 | . 1 . 2 . . . . . . . . . . Prototype ID Bank 2 | . 1 . 1 . . . . . . . . . . Emergency Access Points 1 | . . . . . . . . . . 1 . . . Unreport Threat 2 | . . . 1 . . . . . 1 . . . . Locate Traps 3 | . 2 . 1 . . . . . . . . . . Hauler Manifests 3 | . . . 2 . . . . . . . 1 . . Zone Layout 3 | . 1 . 2 . . . . . . . . . . Fabricator Hacks . | . . . . . . . . . . . . . . Repair Station Hacks 24 | . . . 24 . . . . . . . . . . Scan Component 12 | . . . 12 . . . . . . . . . . Repair 12 | . . . 12 . . . . . . . . . . Recycling Unit Hacks 4 | . 2 . 1 . . . . . . . 1 . . Retrieve Components 4 | . 2 . 1 . . . . . . . 1 . . Scanalyzer 5 | . . . 5 . . . . . . . . . . Insert Component 2 | . . . 2 . . . . . . . . . . Analyze 3 | . . . 3 . . . . . . . . . . Garrison Access Hacks 2 | . . . . . . . 1 . 1 . . . . Unlock Access 2 | . . . . . . . 1 . 1 . . . . Unauthorized Hacks 14 | . 9 . 4 . . . . . 1 . . . . Terminals 12 | . 7 . 4 . . . . . 1 . . . . Botnet 6 | . 2 . 3 . . . . . 1 . . . . Operators 1 | . . . 1 . . . . . . . . . . Skim 5 | . 5 . . . . . . . . . . . . Fabricators . | . . . . . . . . . . . . . . Repair Stations . | . . . . . . . . . . . . . . Recycling Units 2 | . 2 . . . . . . . . . . . . Tunnel 2 | . 2 . . . . . . . . . . . . Scanalyzers . | . . . . . . . . . . . . . . Garrison Access . | . . . . . . . . . . . . . . Data Cores Recovered . | . . . . . . . . . . . . . . Used . | . . . . . . . . . . . . . . Hacking Detections 33 | . 6 . 12 1 . . 1 3 4 1 2 . 3 Full Trace Events 3 | . . . . . . . . 1 1 . 1 . . Feedback Events 1 | . . . . . . . . . . . 1 . . Corruption 1 | . . . . . . . . . . . 1 . . Feedback Blocked . | . . . . . . . . . . . . . . Robot Schematics Acquired 1 | . . . . 1 . . . . . . . . . Robots Built . | . . . . . . . . . . . . . . Authchips . | . . . . . . . . . . . . . . Time . | . . . . . . . . . . . . . . Total Robot Build Rating . | . . . . . . . . . . . . . . Part Schematics Acquired 3 | . . . 3 . . . . . . . . . . Parts Built . | . . . . . . . . . . . . . . Authchips . | . . . . . . . . . . . . . . Time . | . . . . . . . . . . . . . . Total Part Build Rating . | . . . . . . . . . . . . . . Parts Repaired 12 | . . . 12 . . . . . . . . . . Time 391 | . . . 391 . . . . . . . . . . Parts Recycled . | . . . . . . . . . . . . . . Recycled Matter . | . . . . . . . . . . . . . . Retrieved Matter . | . . . . . . . . . . . . . . Retrieved Components 20 | . 8 . 10 . . . . . . . 2 . . Parts Scanalyzed 2 | . . . 2 . . . . . . . . . . Part Schematics Acquired 2 | . . . 2 . . . . . . . . . . Parts Damaged . | . . . . . . . . . . . . . . Bothacking | -11 -10 -10 -9 -9 -9 -8 -8 -8 -8 -8 -7 -7 -7 ------------ Run | Yrd Mat Min Mat Min Exi Min Mat Gar Mat Gar Fac Was Fac Used RIF Installer 2 | . . . . . . . . 1 . 1 . . . Hotswap 1 | . . . . . . . . . . 1 . . . Robots Hacked 26 | . . . . . . . . . 7 3 14 2 . Non-combat 8 | . . . . . . . . . 2 . 6 . . Combat 18 | . . . . . . . . . 5 3 8 2 . Robot Hacks Applied 28 | . . . . . . . . . 8 3 15 2 . parse_system 2 | . . . . . . . . . . . 2 . . find_chute 4 | . . . . . . . . . . . 4 . . map_route 1 | . . . . . . . . . . . 1 . . ignore_targets 2 | . . . . . . . . . . . . 2 . find_garrison 1 | . . . . . . . . . 1 . . . . overload_power 3 | . . . . . . . . . . 2 1 . . reboot_system 1 | . . . . . . . . . 1 . . . . overwrite_iff 3 | . . . . . . . . . 1 . 2 . . streamctrl_high 3 | . . . . . . . . . 2 . 1 . . formatsys_low 3 | . . . . . . . . . 2 . 1 . . formatsys_high 5 | . . . . . . . . . 1 1 3 . . Relay Couplers Released 17 | . . . . . . . . 8 . 9 . . . Machine Destruction 17 | . . . . . . . . 8 . 9 . . . Attached 5 | . . . . . . . . . 3 1 1 . . Fabnet Peak Effective % . | . . . . . . . . . . . . . . Robots Rewired 4 | . . . . . . . . 3 1 . . . . Allies Hacked 1 | . . . . . . . . . . . 1 . . Hacks Repelled . | . . . . . . . . . . . . . . Allies | -11 -10 -10 -9 -9 -9 -8 -8 -8 -8 -8 -7 -7 -7 -------- Run | Yrd Mat Min Mat Min Exi Min Mat Gar Mat Gar Fac Was Fac Total Allies 20 | . . . . . . . . 3 7 3 7 . . Largest Group 3 | . . . . . . . . 3 2 3 2 1 . Highest-Rated Group 85 | . . . . . . . . 65 39 85 52 23 . Highest-Rated Ally 31 | . . . . . . . . 25 29 31 29 23 . Total Orders 10 | . . . . . . . . . 4 4 2 . . FOLLOW 1 | . . . . . . . . . 1 . . . . AID 9 | . . . . . . . . . 3 4 2 . . Ally Attacks 128 | . . . . . . . . 28 43 46 11 . . Total Damage 2031 | . . . . . . . . 527 598 757 149 . . Kills 23 | . . . . . . . . 6 5 11 1 . . Allies Corrupted . | . . . . . . . . . . . . . . Allies Melted . | . . . . . . . . . . . . . . Intel | -11 -10 -10 -9 -9 -9 -8 -8 -8 -8 -8 -7 -7 -7 ------- Run | Yrd Mat Min Mat Min Exi Min Mat Gar Mat Gar Fac Was Fac Robot Analysis Total 3 | . 1 . 2 . . . . . . . . . . Derelict Logs Recovered 4 | . . 2 . 2 . . . . . . . . . Drone Launches . | . . . . . . . . . . . . . . Drone Recoveries . | . . . . . . . . . . . . . . Exploration | -11 -10 -10 -9 -9 -9 -8 -8 -8 -8 -8 -7 -7 -7 ------------- Run | Yrd Mat Min Mat Min Exi Min Mat Gar Mat Gar Fac Was Fac Turns Passed 19935 | 348 1992 1050 4634 1282 1064 865 576 2160 2219 1126 2165 323 131 Spaces Moved 6196 | 186 816 416 1531 390 333 259 75 534 525 305 528 155 143 Core 4 | 3 . . . . . . . . 1 . . . . Treads 5949 | 183 816 416 1531 390 333 259 75 534 524 305 528 55 . Legs . | . . . . . . . . . . . . . . Wheels 243 | . . . . . . . . . . . . 100 143 Hover . | . . . . . . . . . . . . . . Flight . | . . . . . . . . . . . . . . Fastest Speed 50 | 50 160 240 240 320 320 320 320 320 320 325 320 90 90 Average Speed 270 | 158 200 240 245 320 320 320 320 320 346 325 327 191 90 Slowest Speed 1700 | 160 240 240 400 320 320 320 320 320 1700 325 480 480 90 Overloaded Moves . | . . . . . . . . . . . . . . Propulsion Burnouts . | . . . . . . . . . . . . . . Robots Hopped . | . . . . . . . . . . . . . . Cave-ins Triggered . | . . . . . . . . . . . . . . Exploration Rate (%) 52 | 10 97 74 94 56 67 61 10 68 41 45 16 93 3 Regions Visited 13 Branch Regions 4 Pre-discovered Areas 6 | . 5 1 . . . . . . . . . . . Known Exits Taken 4 | . 1 1 . . . . 1 . 1 . . . . Unknown Exits Taken 5 | 1 . . 1 1 1 1 . . . . . . . Scrap Searched 5 | . . 1 . 3 . 1 . . . . . . . Spaces Dug 18 | . . . 9 . . . 3 6 . . . . . Terrain Destroyed 474 | . 57 . 107 36 . . 86 78 36 . 74 . . Melee . | . . . . . . . . . . . . . . Projectile 41 | . . . . . . . . . 7 . 34 . . AOE 433 | . 57 . 107 36 . . 86 78 29 . 40 . . Terrain Rammed . | . . . . . . . . . . . . . . Walls Destroyed . | . . . . . . . . . . . . . . Machines Disabled . | . . . . . . . . . . . . . . Actions | -11 -10 -10 -9 -9 -9 -8 -8 -8 -8 -8 -7 -7 -7 --------- Run | Yrd Mat Min Mat Min Exi Min Mat Gar Mat Gar Fac Was Fac Total 8394 | 212 1067 441 2150 414 334 296 325 810 802 417 800 179 147 Wait 1051 | . 126 9 351 3 . 33 181 55 142 38 110 3 . Move 6185 | 185 815 415 1530 389 332 258 75 533 524 304 528 154 143 Hop . | . . . . . . . . . . . . . . Pick Up 137 | 5 27 1 22 5 . 2 4 21 11 12 11 14 2 Fast Attach 59 | 7 4 . 26 1 . . 2 1 9 1 7 1 . Attach 49 | . 1 1 4 2 . 2 7 10 7 1 13 1 . Detach 20 | . 3 . 2 2 2 . 1 . 4 1 5 . . Swap 152 | 1 14 1 36 5 . 1 7 35 20 8 23 1 . Drop 106 | . 19 . 40 1 . . 2 13 10 14 4 1 2 Fire 561 | 11 54 13 134 6 . . 46 91 73 34 95 4 . Melee . | . . . . . . . . . . . . . . Ram . | . . . . . . . . . . . . . . Kick . | . . . . . . . . . . . . . . Crush 20 | 3 4 1 5 . . . . 1 2 . 4 . . Escape Stasis 10 | . . . . . . . . 6 . 4 . . . Rewire 27 | . . . . . . . . 27 . . . . . Trap . | . . . . . . . . . . . . . . Miscellaneous 17 | . . . . . . . . 17 . . . . . Route ------- -11/Scrapyard -10/Materials (discovered 6 exits: *Mat x3 / *Min x2 / Sub) -10/Mines (discovered 2 exits: *Mat / Sub) -9/Materials (discovered 4 exits: *Mat x3 / *Min) -9/Mines -9/Exiles -8/Mines -8/Materials (discovered 2 exits: Sto / Gar) -8/Garrison (discovered 2 exits: *Mat x2) -8/Materials (discovered 2 exits: *Fac / Gar) -8/Garrison -7/Factory -7/Waste -7/Factory History --------- Turn | Location | Event 3 | -11/Scrapyard | Discovered new exit (range 16) 349 | -11/Scrapyard | Entered Materials 350 | -10/Materials | Build established: Mutant 1044 | -10/Materials | Discovered new exit (range 9) 1089 | -10/Materials | Discovered new exit (range 12) 1571 | -10/Materials | Discovered new exit (range 15) 1607 | -10/Materials | Discovered new exit (range 12) 1783 | -10/Materials | Central database locked down 1846 | -10/Materials | Learned 4 Recycling zone layouts 1900 | -10/Materials | Loaded intel: 20 trap records 1953 | -10/Materials | Discovered new exit (range 6) 1980 | -10/Materials | Learned location of Storage (-8) 2005 | -10/Materials | Identified exit to Materials 2005 | -10/Materials | Identified exit to Mines 2005 | -10/Materials | Identified exit to Subcaves 2132 | -10/Materials | Learned location of Mines (-9) 2341 | -10/Materials | Entered Mines 2343 | -10/Mines | Met a Derelict bent on vengeance 2440 | -10/Mines | Learned Materials stockpile data 2541 | -10/Mines | Core integrity fell below 50% 3007 | -10/Mines | Discovered exit to Materials (range 12) 3391 | -10/Mines | Entered Materials 3391 | -9/Materials | Evolved 2 slots: Utility x2 3779 | -9/Materials | Discovered new exit (range 9) 4932 | -9/Materials | Repaired Cooling System 4961 | -9/Materials | Repaired Lgt. Treads 4997 | -9/Materials | Repaired Hrd. Light Armor Plating 5301 | -9/Materials | Discovered new exit (range 16) 5881 | -9/Materials | Discovered new exit (range 15) 6191 | -9/Materials | First assault squad dispatched 6355 | -9/Materials | Destroyed 9 combat bots 6603 | -9/Materials | Central database locked down 7228 | -9/Materials | Repaired Remote Shield 7261 | -9/Materials | Repaired Med. Armor Plating 7295 | -9/Materials | Repaired Cooling System 7324 | -9/Materials | Repaired Lgt. Armor Plating 7377 | -9/Materials | Repaired Cld. Ion Engine 7406 | -9/Materials | Repaired Lgt. Treads 7433 | -9/Materials | Repaired Lgt. Treads 7467 | -9/Materials | Repaired Rocket Launcher 7495 | -9/Materials | Repaired Lgt. Treads 7739 | -9/Materials | Discovered new exit (range 6) 7894 | -9/Materials | Core integrity fell below 50% 7924 | -9/Materials | Sterilization system engaged 7924 | -9/Materials | Non-combat units ordered to evacuate 7924 | -9/Materials | Destroyed 9 combat bots 8024 | -9/Materials | Combat units ordered to evacuate 8025 | -9/Materials | Entered Mines 8124 | -9/Mines | Learned Materials garrison access intel 8348 | -9/Mines | Deemed a non-threat by the Exiles lab entrance 8348 | -9/Mines | Discovered new exit (range 5) 8520 | -9/Mines | Received a Rocket Launcher from a helpful Derelict 8588 | -9/Mines | Assembled infested the area 8593 | -9/Mines | Assisted by a Guerilla fighting off Assembled 9307 | -9/Mines | Entered Exiles 9385 | -9/Exiles | Met 8R-AWN 9443 | -9/Exiles | Met EX-HEX 9568 | -9/Exiles | Met EX-DEC 9811 | -9/Exiles | Discovered new exit (range 14) 10017 | -9/Exiles | Visited The Gauntlet 10371 | -9/Exiles | Entered Mines 11200 | -8/Mines | Discovered new exit (range 12) 11236 | -8/Mines | Entered Materials 11236 | -8/Materials | Evolved 2 slots: Utility x2 11237 | -8/Materials | Identified exit to Storage 11238 | -8/Materials | Loaded intel: 1 garrison access location 11393 | -8/Materials | Garrison activated, responded to threat 11665 | -8/Materials | Lost 5 parts (2n1u2w) 11668 | -8/Materials | Destroyed 12 combat bots 11723 | -8/Materials | Garrison activated, responded to threat 11812 | -8/Materials | Identified exit to Garrison 11812 | -8/Materials | Entered Garrison 11874 | -8/Garrison | Triggered checkpoint 11917 | -8/Garrison | Garrison Relay disabled 12170 | -8/Garrison | Triggered checkpoint 12487 | -8/Garrison | Discovered new exit (range 15) 12620 | -8/Garrison | Build established: Scavenger-Mutant 12626 | -8/Garrison | Triggered checkpoint 12697 | -8/Garrison | Garrison Relay disabled 13050 | -8/Garrison | Triggered checkpoint 13091 | -8/Garrison | Triggered checkpoint 13140 | -8/Garrison | Lost 4 parts (1n3u) 13289 | -8/Garrison | Discovered new exit (range 10) 13308 | -8/Garrison | Triggered checkpoint 13412 | -8/Garrison | Build established: Mutant 13448 | -8/Garrison | Phase Generator disabled 13557 | -8/Garrison | Lost 4 parts (4u) 13856 | -8/Garrison | Build established: Scavenger-Mutant 13862 | -8/Garrison | Installed Relay Interface Framework 13972 | -8/Garrison | Entered Materials 14017 | -8/Materials | Core integrity fell below 50% 14163 | -8/Materials | Build established: Bothacker-Mutant 14260 | -8/Materials | Lost 3 parts (1p2u) 14761 | -8/Materials | Discovered new exit (range 10) 14772 | -8/Materials | First assault squad dispatched 15182 | -8/Materials | Identified exit to Garrison 16191 | -8/Materials | Entered Garrison 16191 | -8/Garrison | Accompanied by 1 ally 16259 | -8/Garrison | Triggered checkpoint 16274 | -8/Garrison | Rescued a captive Derelict 16276 | -8/Garrison | Rescued a captive Derelict 16466 | -8/Garrison | Expanded RIF knowledge: Hotswap 16491 | -8/Garrison | Garrison Relay disabled 16743 | -8/Garrison | Triggered checkpoint 16750 | -8/Garrison | Triggered checkpoint 16957 | -8/Garrison | Triggered checkpoint 17041 | -8/Garrison | Garrison Relay disabled 17100 | -8/Garrison | Discovered new exit (range 8) 17317 | -8/Garrison | Entered Factory 17317 | -7/Factory | Accompanied by 2 allies 17317 | -7/Factory | Evolved 2 slots: Utility x2 18317 | -7/Factory | Discovered new exit (range 15) 18350 | -7/Factory | Lost 3 allies 19482 | -7/Factory | Sucked down chute 19482 | -7/Factory | Entered Waste 19497 | -7/Waste | EMP discharged 19497 | -7/Waste | System corruption reached 10% 19507 | -7/Waste | 1 allies followed down the chute 19510 | -7/Waste | Spotted C-40 Crusher 19597 | -7/Waste | EMP discharged 19609 | -7/Waste | Spotted C-40 Crusher 19644 | -7/Waste | Crushed by Compactor (1 part destroyed, 1 dropped) 19658 | -7/Waste | Crushed by Compactor (1 part destroyed, 1 dropped) 19662 | -7/Waste | Crushed by Compactor (1 part destroyed, 1 dropped) 19693 | -7/Waste | Lost 4 parts (4u) 19697 | -7/Waste | EMP discharged 19697 | -7/Waste | System corruption reached 30% 19724 | -7/Waste | Spotted C-40 Crusher 19740 | -7/Waste | Crushed by Compactor (1 part destroyed, 1 dropped) 19757 | -7/Waste | Spotted C-40 Crusher 19759 | -7/Waste | Spotted C-40 Crusher 19783 | -7/Waste | Spotted C-40 Crusher 19797 | -7/Waste | EMP discharged 19797 | -7/Waste | Discovered new exit (range 10) 19805 | -7/Waste | Entered Factory 19936 | -7/Factory | Self-destructed Last Messages --------------- 19870_ Terminal x1 19875_ System corrupted: Heat flow error (+185). 19876_ Connecting with Terminal... 19891_ K#GEUHOE/MU SJYIKOOHV:O 19898_ Dropped Lgt. Treads. 19898_ Acquired Arm. Treads. 19906_ YO Q=UK6|JG1422NB7IJ/SREPHS48EP 19916_ >> Machine Analyzer network decryption results: 19916_ DSF Access x1 19916_ Terminal x1 19935_ Triggered Ambush Trap. 19935_ G-47 Trooper emerges from a hatch in the floor. 19935_ S-27 Virus emerges from a hatch in the floor. 19935_ ALERT: All DSF locations entering lockdown mode. 19935_ Centrium Wheel destroyed. 19936_ System corrupted: Heat flow error (+113). Map ----- +----------------------------------------------------+ | ?????????????????????????????????????????????????? | | ?????????????????????????????????????????????????? | | ?????????????????????????????????????????????????? | | ?????????????????????????????????????????????????? | | ?????????????????????????????????????????????????? | | ?????????????????????????????????????????????????? | | ?????????????????????????????????????????????????? | | ?????????????????????????????????????????????????" | | ?????????????????????????????????????????????????" | | ?????????????????????????????????????????????????" | | ????????????????? ????????????????????????????" | | ???????????????# ????????????????????????????" | | ???????????????# ????????????????????????????" | | ???????????????+ ????????????????????????????" | | ???????????????? ???????????????????????????" | | ???????????????? ???????????##############??" | | ????????????????? ???????????# #??? | | ?????????????????# #???????????# #### | | ?????????????????# #???????????# // + | | ?????????????????# #???????????# // # | | ?????????????????# #???????????# / + | | ????????????????## ##??????????# # | | ????????????????# #??????????# # | | ????????????????# " ############ # ## | | ????????????????# "T s + # #? | | ????????????????# ###@gg # # #? | | ????????????????# #?# """ # # #? | | ????????????????### ###?# """ + = # #? | | ??????????????????# #???# """ ############## ## | | ??????????????????# #???# ############# # | | ?????????????????? ???# T # | | ?????????????????? ???#######+############## # | | ?????????????????# ????????! ???????????##### | | ?????????????????##+#???????# #?????????????? | | ????????????????????????????# """ #?????????????? | | ????????????????????????????# """ #?????????????? | | ???????????????????"""??????# """ #?????????????? | | ???????????????????"""??????# #?????????????? | | ???????????????????"""??????########?????????????? | | ?????????????????????????????????????????????????? | | ?????????????????????????????????????????????????? | | ?????????????????????????????????????????????????? | | ?????????????????????????????????????????????????? | | ?????????????????????????????????????????????????? | | ?????????????????????????????????????????????????? | | ?????????????????????????????????????????????????? | | | | | | | | | +----------------------------------------------------+ Best States ------------- Heat Dissipation 65 Energy Generation 23 Energy Capacity 290 Matter Stores 300 Matter Capacity 300 Sight Range 16 Terrain Scan Density 10 Jamming Range 12 Armor Coverage 750 Resistance: TH 10 Resistance: EM 15 Core Shielding 20 Evasion (%) 42 Target Analysis 5 Recoil Reduction 2 Offensive Hacking 10 Relay Coupler Types 3 Relay Coupler Value 65 Item Schematics ----------------- Cooling System | -9/Materials | Scanalyzed Plasma Cutter | -9/Materials | Scanalyzed Huge Storage Unit | -9/Materials | Hacked Robot Schematics ------------------ M-13 Machinist | -9/Mines | Hacked Fabricated ------------ Nothing Alien Tech Used ----------------- None Achievements -------------- None Challenges ------------ None Game ------ Seed ParticleConstructBallwheel Manual? 0 Play Time 02:00:35 Cumulative 182.6 hours Start 2025.01.05 @ 15:25:42 End 2025.01.05 @ 17:37:44 Sessions 1 Manual Loads 0 Difficulty Rogue Special Mode Winter2021/Sauler Game No. 95 Rogue 32 Adventurer 63 Explorer 0 Win Type - Total 8 Types 7/0/0/1/0/0/0/0/0 Lore% 72 Gallery% 69 Achievement% 57 Wizard Run 0 Options --------- Layout 1 ASCII 0 Keyboard 1 Movement Numpad Keybinds 0 Fullscreen 2 Font 24/Terminus Map View 50x35 Zoom Use 0% Tactical HUD 1 Map Filters NONE Filters NONE Steam 1 RUN: 5a321b8c-20f6-40c5-bdd2-eaf786305868